fUSD/lending_fUSD_20240517
["ID","MTS","AMOUNT","RATE_DAILY","PERIOD"]
[327247291,1715922645591,-500.0,0.00012897,2]
[327247293,1715922645601,-523.05502531,0.00012897,2]
[327247295,1715922645610,-500.0,0.00012897,2]
[327247297,1715922645619,-500.0,0.00012897,2]
[327247299,1715922645628,-529.54202928,0.00012897,2]
[327247301,1715922645637,-485.5,0.00012897,2]
[327247303,1715922645647,-500.0,0.00012897,2]
[327247305,1715922645660,-500.0,0.00012897,2]
[327247307,1715922645674,-500.0,0.00012897,2]
[327247310,1715922645686,-515.37112123,0.00012897,2]
[327247312,1715922645699,-520.217103,0.00012897,2]
[327247315,1715922645712,-499.86397511,0.00012897,2]
[327247317,1715922645723,-518.52338367,0.00012897,2]
[327247319,1715922645734,-557.06096663,0.00012897,2]
[327247321,1715922645746,-523.27985216,0.00012897,2]
[327247323,1715922645757,-544.75340844,0.00012897,2]
[327247326,1715922645768,-528.85599733,0.00012897,2]
[327247328,1715922645780,-500.0,0.00012897,2]
[327247330,1715922645792,-564.40878579,0.00012897,2]
[327247332,1715922645804,-187.00180011,0.00012897,2]
[327247335,1715922645815,-309.46962947,0.00012897,2]
[327247337,1715922645827,-500.0,0.00012897,2]
[327247339,1715922645838,-204.5312849,0.00012897,2]
[327247342,1715922645852,-519.54034368,0.00012897,2]
[327247344,1715922645864,-509.44514083,0.00012897,2]
[327247346,1715922645876,-520.85648934,0.00012897,2]
[327247349,1715922645888,-500.0,0.00012897,2]
[327247351,1715922645899,-515.714117,0.00012897,2]
[327247353,1715922645911,-500.0,0.00012897,2]
[327247355,1715922645922,-520.11656677,0.00012897,2]
[327247358,1715922645934,-508.36314016,0.00012897,2]
[327247360,1715922645947,-514.70189206,0.00012897,2]
[327247362,1715922645959,-509.9173498,0.00012897,2]
[327247364,1715922645971,-500.0,0.00012897,2]
[327247367,1715922645982,-500.0,0.00012897,2]
[327247369,1715922645993,-507.60167728,0.00012897,2]
[327247371,1715922646003,-512.28132884,0.00012897,2]
[327247373,1715922646016,-234.16156389,0.00012897,2]
[327247375,1715922646027,-510.10642418,0.00012897,2]
[327247378,1715922646038,-500.0,0.00012897,2]
[327247380,1715922646050,-516.8948179,0.00012897,2]
[327247382,1715922646060,-500.0,0.00012897,2]
[327247384,1715922646072,-511.07888865,0.00012897,2]
[327247387,1715922646084,-205.27411746,0.00012897,2]
[327247389,1715922646096,-500.0,0.00012897,2]
[327247391,1715922646109,-551.58900828,0.00012897,2]
[327247394,1715922646122,-500.0,0.00012897,2]
[327247396,1715922646135,-500.0,0.00012897,2]
[327247398,1715922646147,-329.5551129,0.00012897,2]
[327247400,1715922646158,-500.0,0.00012897,2]
[327247402,1715922646171,-476.71158414,0.00012897,2]
[327247405,1715922646182,-8218.9628,0.00012898,2]
[327247407,1715922646192,-2427.9441,0.00012898,2]
[327247409,1715922646203,-500.0,0.00012898,2]
[327247411,1715922646215,-207.59566893,0.00012898,2]
[327247413,1715922646227,-500.0,0.00012898,2]
[327247415,1715922646238,-500.0,0.00012898,2]
[327247417,1715922646251,-500.0,0.00012898,2]
[327247419,1715922646262,-500.0,0.00012898,2]
[327247421,1715922646272,-151.0,0.00012898,2]
[327247423,1715922646283,-151.0,0.00012898,2]
[327247426,1715922646301,-166.317275,0.00012898,2]
[327247428,1715922646313,-151.0,0.00012898,2]
[327247430,1715922646324,-151.0,0.00012898,2]
[327247432,1715922646336,-152.628246,0.00012898,2]
[327247434,1715922646346,-151.0,0.00012898,2]
[327247437,1715922646356,-151.0,0.00012898,2]
[327247439,1715922646366,-2000.0,0.00012899,2]
[327247441,1715922646377,-200.0,0.00012899,2]
[327247443,1715922646387,-18549.84099677,0.00012899,2]
[327247445,1715922646397,-2000.0,0.00012899,2]
[327247447,1715922646408,-200.0,0.00012899,2]
[327247449,1715922646418,-2548.97473,0.00012899,2]
[327247451,1715922646429,-151.0,0.00012899,2]
[327247453,1715922646440,-156.671455,0.00012899,2]
[327247455,1715922646451,-158.100314,0.00012899,2]
[327247458,1715922646461,-157.36201,0.00012899,2]
[327247460,1715922646471,-151.0,0.00012899,2]
[327247462,1715922646482,-151.0,0.00012899,2]
[327247464,1715922646492,-156.972957,0.00012899,2]
[327247466,1715922646503,-151.0,0.00012899,2]
[327247468,1715922646514,-151.0,0.00012899,2]
[327247470,1715922646524,-151.0,0.00012899,2]
[327247473,1715922646536,-151.0,0.00012899,2]
[327247475,1715922646547,-151.0,0.00012899,2]
[327247477,1715922646559,-151.0,0.00012899,2]
[327247479,1715922646569,-158.018603,0.00012899,2]
[327247480,1715922646579,-152.566811,0.00012899,2]
[327247481,1715922646590,-151.0,0.00012899,2]
[327247482,1715922646600,-151.0,0.00012899,2]
[327247483,1715922646611,-1090.299647,0.00012899,2]
[327247484,1715922646622,-1090.299647,0.00012899,2]
[327247485,1715922646632,-152.66364,0.00012899,2]
[327247486,1715922646643,-2000.0,0.00012899,2]
[327247487,1715922646654,-200.0,0.00012899,2]
[327247488,1715922646665,-151.0,0.000129,2]
[327247489,1715922646675,-151.0,0.000129,2]
[327247490,1715922646686,-151.911506,0.000129,2]
[327247491,1715922646697,-153.38736,0.000129,2]
[327247492,1715922646707,-193.3969877,0.000129,2]
[327247493,1715922646718,-150.0,0.00012901,2]
[327247494,1715922646729,-150.0,0.00012902,2]
[327247495,1715922646740,-500.0,0.00012902,2]
[327247496,1715922646751,-150.0,0.00012903,2]
[327247497,1715922646762,-150.0,0.00012905,2]
[327247498,1715922646773,-150.0,0.00012906,2]
[327247500,1715922646784,-150.0,0.00012907,2]
[327247502,1715922646795,-206.86,0.00012909,2]
[327247504,1715922646805,-644.0,0.00012909,2]
[327247506,1715922646816,-500.0,0.00012911,2]
[327247509,1715922646827,-150.0,0.00012912,2]
[327247511,1715922646838,-1500.0,0.00012916,2]
[327247513,1715922646849,-300.0,0.00012916,2]
[327247515,1715922646860,-1500.0,0.00012918,2]
[327247517,1715922646870,-500.0,0.0001292,2]
[327247520,1715922646881,-150.0,0.0001292,2]
[327247522,1715922646891,-150.0,0.0001292,2]
[327247524,1715922646902,-150.0,0.00012922,2]
[327247526,1715922646913,-1500.0,0.00012923,2]
[327247528,1715922646924,-150.0,0.00012925,2]
[327247530,1715922646934,-150.0,0.00012927,2]
[327247533,1715922646945,-500.0,0.00012929,2]
[327247535,1715922646956,-150.0,0.00012933,2]
[327247537,1715922646967,-150.0,0.00012935,2]
[327247539,1715922646978,-500.0,0.00012937,2]
[327247541,1715922646989,-150.0,0.00012938,2]
[327247544,1715922647000,-154.278224,0.00012938,2]
[327247546,1715922647010,-151.0,0.00012938,2]
[327247548,1715922647022,-163.58068,0.00012938,2]
[327247550,1715922647032,-151.0,0.00012938,2]
[327247552,1715922647043,-151.0,0.00012938,2]
[327247554,1715922647053,-156.370146,0.00012938,2]
[327247557,1715922647063,-151.237709,0.00012938,2]
[327247559,1715922647075,-150.0,0.00012939,2]
[327247561,1715922647086,-150.0,0.00012944,2]
[327247563,1715922647098,-150.0,0.00012945,2]
[327247565,1715922647108,-500.0,0.00012946,2]
[327247568,1715922647119,-150.0,0.00012947,2]
[327247570,1715922647130,-150.0,0.0001295,2]
[327247572,1715922647141,-150.0,0.00012952,2]
[327247574,1715922647151,-500.0,0.00012955,2]
[327247576,1715922647162,-500.0,0.00012955,2]
[327247578,1715922647177,-150.0,0.0001296,2]
[327247581,1715922647188,-150.0,0.00012961,2]
[327247583,1715922647198,-1500.0,0.00012961,2]
[327247585,1715922647211,-151.0,0.00012962,2]
[327247587,1715922647221,-205.812478,0.00012962,2]
[327247590,1715922647232,-151.0,0.00012962,2]
[327247592,1715922647245,-167.739102,0.00012962,2]
[327247594,1715922647256,-151.0,0.00012962,2]
[327247596,1715922647267,-259.89038,0.00012962,2]
[327247598,1715922647278,-154.809678,0.00012962,2]
[327247600,1715922647291,-500.0,0.00012964,2]
[327247602,1715922647301,-500.0,0.00012964,2]
[327247604,1715922647312,-150.0,0.00012964,2]
[327247607,1715922647324,-150.0,0.00012967,2]
[327247609,1715922647335,-150.0,0.00012969,2]
[327247611,1715922647346,-150.0,0.00012969,2]
[327247613,1715922647357,-150.0,0.0001297,2]
[327247615,1715922647368,-500.0,0.00012973,2]
[327247617,1715922647378,-500.0,0.00012973,2]
[327247620,1715922647389,-150.0,0.00012976,2]
[327247622,1715922647400,-627.13691685,0.00012981,2]
[327247624,1715922647410,-500.0,0.00012981,2]
[327247626,1715922647421,-500.0,0.00012981,2]
[327247628,1715922647432,-500.0,0.00012981,2]
[327247630,1715922647442,-500.0,0.00012981,2]
[327247632,1715922647453,-500.0,0.00012981,2]
[327247635,1715922647464,-500.0,0.00012981,2]
[327247637,1715922647474,-500.0,0.00012981,2]
[327247639,1715922647484,-500.0,0.00012981,2]
[327247641,1715922647494,-500.0,0.00012981,2]
[327247643,1715922647505,-500.0,0.00012981,2]
[327247645,1715922647516,-150.0,0.00012984,2]
[327247648,1715922647528,-150.0,0.00012986,2]
[327247650,1715922647538,-151.0,0.00012987,2]
[327247652,1715922647549,-151.0,0.00012987,2]
[327247654,1715922647559,-500.0,0.00012989,2]
[327247656,1715922647570,-335.05557303,0.00012989,2]
[327247658,1715922647580,-345.80571526,0.00012989,2]
[327247660,1715922647591,-310.12958961,0.00012989,2]
[327247663,1715922647603,-500.0,0.00012989,2]
[327247665,1715922647614,-500.0,0.00012989,2]
[327247667,1715922647625,-150.0,0.00012989,2]
[327247669,1715922647635,-500.0,0.00012989,2]
[327247671,1715922647646,-500.0,0.00012989,2]
[327247673,1715922647656,-500.0,0.00012989,2]
[327247676,1715922647668,-500.0,0.00012989,2]
[327247678,1715922647678,-500.0,0.00012989,2]
[327247680,1715922647688,-2315.29,0.00012989,2]
[327247682,1715922647699,-500.0,0.00012989,2]
[327247684,1715922647709,-255.0,0.0001299,2]
[327247686,1715922647719,-500.0,0.0001299,2]
[327247688,1715922647730,-500.0,0.0001299,2]
[327247690,1715922647740,-500.0,0.0001299,2]
[327247693,1715922647750,-500.0,0.0001299,2]
[327247695,1715922647759,-500.0,0.0001299,2]
[327247697,1715922647768,-500.0,0.0001299,2]
[327247724,1715922648004,-500.0,0.0001299,2]
[327247727,1715922648026,-500.0,0.0001299,2]
[327247730,1715922648041,-500.0,0.0001299,2]
[327247732,1715922648051,-500.0,0.0001299,2]
[327247734,1715922648060,-744.64,0.0001299,2]
[327247736,1715922648069,-3212.46,0.0001299,2]
[327247738,1715922648078,-500.0,0.0001299,2]
[327247740,1715922648087,-550.91651409,0.0001299,2]
[327247742,1715922648096,-620.58272418,0.0001299,2]
[327247744,1715922648105,-500.0,0.0001299,2]
[327247746,1715922648114,-247.08055775,0.0001299,2]
[327247748,1715922648123,-500.0,0.0001299,2]
[327247750,1715922648132,-500.0,0.0001299,2]
[327247752,1715922648142,-151.0,0.00012991,2]
[327247754,1715922648150,-151.0,0.00012991,2]
[327247756,1715922648159,-151.0,0.00012991,2]
[327247758,1715922648172,-151.0,0.00012991,2]
[327247760,1715922648181,-10902.2874311,0.00012991,2]
[327247762,1715922648190,-11709.5053708,0.00012991,2]
[327247764,1715922648199,-12516.7233104,0.00012991,2]
[327247766,1715922648207,-13323.9412501,0.00012991,2]
[327247768,1715922648216,-14131.1591898,0.00012991,2]
[327247770,1715922648226,-610.7721718,0.00012991,2]
[327247772,1715922648235,-662.0457859,0.00012991,2]
[327247774,1715922648244,-224.119648,0.00012991,2]
[327247776,1715922648253,-713.3194,0.00012991,2]
[327247778,1715922648262,-764.5930142,0.00012991,2]
[327247780,1715922648271,-815.8666283,0.00012991,2]
[327247782,1715922648281,-151.0,0.00012991,2]
[327247784,1715922648291,-151.0,0.00012991,2]
[327247786,1715922648300,-151.0,0.00012991,2]
[327247788,1715922648309,-151.0,0.00012991,2]
[327247790,1715922648318,-151.0,0.00012991,2]
[327247792,1715922648327,-1693.8487259,0.00012991,2]
[327247794,1715922648336,-1872.8095737,0.00012991,2]
[327247796,1715922648345,-2051.7704215,0.00012991,2]
[327247798,1715922648354,-2230.7312692,0.00012991,2]
[327247800,1715922648363,-2409.692117,0.00012991,2]
[327247802,1715922648372,-151.0,0.00012991,2]
[327247804,1715922648381,-159.492666,0.00012991,2]
[327247806,1715922648390,-236.591314,0.00012991,2]
[327247808,1715922648399,-151.0,0.00012991,2]
[327247810,1715922648409,-154.91791,0.00012991,2]
[327247812,1715922648419,-152.458695,0.00012991,2]
[327247814,1715922648428,-1090.299647,0.00012991,2]
[327247816,1715922648436,-1090.299647,0.00012991,2]
[327247818,1715922648446,-1256.4880663,0.00012991,2]
[327247820,1715922648455,-1439.020702,0.00012991,2]
[327247822,1715922648464,-1621.5533377,0.00012991,2]
[327247824,1715922648474,-1804.0859735,0.00012991,2]
[327247826,1715922648483,-1986.6186092,0.00012991,2]
[327247828,1715922648491,-151.0,0.00012991,2]
[327247830,1715922648501,-158.832007,0.00012991,2]
[327247832,1715922648510,-161.713653,0.00012991,2]
[327247834,1715922648518,-151.0,0.00012991,2]
[327247836,1715922648528,-151.0,0.00012991,2]
[327247838,1715922648538,-150.0,0.00012992,2]
[327247840,1715922648548,-150.0,0.00012994,2]
[327247842,1715922648557,-157.051713,0.00012996,2]
[327247844,1715922648566,-157.051713,0.00012996,2]
[327247846,1715922648575,-157.051713,0.00012996,2]
[327247848,1715922648584,-157.051713,0.00012996,2]
[327247850,1715922648594,-157.051713,0.00012996,2]
[327247852,1715922648603,-157.051713,0.00012996,2]
[327247854,1715922648613,-157.051713,0.00012996,2]
[327247856,1715922648622,-157.051713,0.00012996,2]
[327247858,1715922648632,-157.051713,0.00012996,2]
[327247860,1715922648641,-157.051713,0.00012996,2]
[327247862,1715922648650,-153.009104,0.00012996,2]
[327247864,1715922648659,-168.613314,0.00012996,2]
[327247866,1715922648669,-151.0,0.00012996,2]
[327247868,1715922648678,-151.0,0.00012996,2]
[327247870,1715922648687,-151.0,0.00012996,2]
[327247872,1715922648697,-150.0,0.00012996,2]
[327247874,1715922648706,-150.0,0.00012996,2]
[327247876,1715922648715,-290.062648,0.00012996,2]
[327247878,1715922648724,-151.0,0.00012996,2]
[327247880,1715922648733,-500.0,0.00012996,2]
[327247882,1715922648742,-151.0,0.00012996,2]
[327247884,1715922648751,-500.0,0.00012996,2]
[327247886,1715922648760,-158.776451,0.00012996,2]
[327247888,1715922648769,-10095.0694914,0.00012996,2]
[327247890,1715922648778,-151.0,0.00012996,2]
[327247892,1715922648787,-559.4985576,0.00012996,2]
[327247894,1715922648796,-321.86578058,0.00012996,2]
[327247896,1715922648805,-1514.8878781,0.00012996,2]
[327247898,1715922648814,-245.43594033,0.00012996,2]
[327247900,1715922648823,-1073.9554305,0.00012996,2]
[327247902,1715922648832,-157.051713,0.00012997,2]
[327247904,1715922648841,-157.051713,0.00012997,2]
[327247906,1715922648851,-157.051713,0.00012997,2]
[327247908,1715922648860,-157.051713,0.00012997,2]
[327247910,1715922648869,-157.051713,0.00012997,2]
[327247912,1715922648878,-157.051713,0.00012997,2]
[327247914,1715922648887,-157.051713,0.00012997,2]
[327247916,1715922648896,-157.051713,0.00012997,2]
[327247918,1715922648905,-157.051713,0.00012997,2]
[327247920,1715922648914,-157.051713,0.00012997,2]
[327247922,1715922648924,-157.051713,0.00012997,2]
[327247924,1715922648933,-157.051713,0.00012997,2]
[327247926,1715922648942,-157.051713,0.00012997,2]
[327247928,1715922648951,-157.051713,0.00012997,2]
[327247930,1715922648960,-157.051713,0.00012997,2]
[327247932,1715922648969,-157.051713,0.00012997,2]
[327247933,1715922648978,-157.051713,0.00012997,2]
[327247936,1715922648988,-157.051713,0.00012997,2]
[327247937,1715922648997,-157.051713,0.00012997,2]
[327247940,1715922649007,-157.051713,0.00012997,2]
[327247941,1715922649017,-157.051713,0.00012997,2]
[327247944,1715922649028,-157.051713,0.00012997,2]
[327247946,1715922649039,-157.051713,0.00012997,2]
[327247948,1715922649049,-157.051713,0.00012997,2]
[327247950,1715922649058,-157.051713,0.00012997,2]
[327247952,1715922649068,-152.590372,0.00012997,2]
[327247954,1715922649076,-151.0,0.00012997,2]
[327247956,1715922649086,-218.98454609,0.00012997,2]
[327247958,1715922649096,-500.0,0.00012997,2]
[327247960,1715922649106,-500.0,0.00012997,2]
[327247962,1715922649115,-150.0,0.00012997,2]
[327247964,1715922649125,-500.0,0.00012997,2]
[327247966,1715922649134,-500.0,0.00012997,2]
[327247968,1715922649143,-500.0,0.00012997,2]
[327247970,1715922649152,-500.0,0.00012997,2]
[327247972,1715922649161,-178.29432014,0.00012997,2]
[327247974,1715922649175,-500.0,0.00012997,2]
[327247976,1715922649184,-500.0,0.00012997,2]
[327247978,1715922649193,-332.93048701,0.00012997,2]
[327247980,1715922649202,-154.8957569,0.00012997,2]
[327247981,1715922649211,-298.41652336,0.00012997,2]
[327247984,1715922649221,-500.0,0.00012997,2]
[327247986,1715922649230,-294.36833944,0.00012997,2]
[327247987,1715922649239,-500.0,0.00012997,2]
[327247990,1715922649250,-500.0,0.00012997,2]
[327247992,1715922649259,-227.37668432,0.00012997,2]
[327247994,1715922649268,-500.0,0.00012997,2]
[327247996,1715922649277,-500.0,0.00012997,2]
[327247997,1715922649287,-500.0,0.00012997,2]
[327248000,1715922649296,-439.56739486,0.00012997,2]
[327248001,1715922649306,-500.0,0.00012997,2]
[327248004,1715922649315,-533.11898389,0.00012997,2]
[327248005,1715922649325,-500.0,0.00012997,2]
[327248007,1715922649334,-153.24047947,0.00012997,2]
[327248010,1715922649343,-366.51503502,0.00012997,2]
[327248011,1715922649352,-209.9850607,0.00012997,2]
[327248013,1715922649361,-195.92948681,0.00012997,2]
[327248016,1715922649371,-593.24045821,0.00012997,2]
[327248018,1715922649380,-283.01291276,0.00012997,2]
[327248020,1715922649390,-500.0,0.00012997,2]
[327248022,1715922649400,-500.0,0.00012997,2]
[327248024,1715922649409,-500.0,0.00012997,2]
[327248026,1715922649419,-500.0,0.00012997,2]
[327248028,1715922649429,-532.53404413,0.00012997,2]
[327248030,1715922649439,-500.0,0.00012997,2]
[327248032,1715922649448,-442.57921533,0.00012997,2]
[327248034,1715922649458,-462.0657605,0.00012997,2]
[327248036,1715922649467,-500.0,0.00012997,2]
[327248038,1715922649476,-500.0,0.00012997,2]
[327248040,1715922649487,-500.0,0.00012997,2]
[327248042,1715922649496,-500.0,0.00012997,2]
[327248044,1715922649506,-408.9871223,0.00012997,2]
[327248046,1715922649515,-540.48196224,0.00012997,2]
[327248048,1715922649524,-536.39101275,0.00012997,2]
[327248050,1715922649533,-527.55454438,0.00012997,2]
[327248052,1715922649543,-151.0,0.00012997,2]
[327248054,1715922649552,-1463.23,0.00012997,2]
[327248056,1715922649562,-291.943063,0.00012997,2]
[327248058,1715922649571,-208.5822665,0.00012998,2]
[327248060,1715922649580,-157.27417444,0.00012998,2]
[327248062,1715922649589,-537.2775495,0.00012998,2]
[327248064,1715922649599,-1512.76334421,0.00012998,2]
[327248066,1715922649608,-209.94006844,0.00012998,2]
[327248068,1715922649617,-408.3633624,0.00012998,2]
[327248070,1715922649627,-189.0992663,0.00012998,2]
[327248072,1715922649636,-165.26556897,0.00012998,2]
[327248074,1715922649645,-155.04811642,0.00012998,2]
[327248076,1715922649654,-419.18534484,0.00012998,2]
[327248078,1715922649663,-247.76966541,0.00012998,2]
[327248080,1715922649673,-792.50738408,0.00012998,2]
[327248082,1715922649682,-2867.73058125,0.00012998,2]
[327248084,1715922649691,-348.31142882,0.00012998,2]
[327248086,1715922649700,-1139.55302842,0.00012998,2]
[327248088,1715922649710,-233.6989714,0.00012998,2]
[327248090,1715922649719,-229.21474676,0.00012998,2]
[327248092,1715922649728,-195.60542276,0.00012998,2]
[327248094,1715922649738,-1000.0,0.00012998,2]
[327248096,1715922649748,-155.33593092,0.00012998,2]
[327248098,1715922649757,-377.00428015,0.00012998,2]
[327248100,1715922649766,-295.76040985,0.00012998,2]
[327248102,1715922649776,-1412.26679383,0.00012998,2]
[327248104,1715922649785,-1432.81169147,0.00012998,2]
[327248106,1715922649794,-195.72161682,0.00012998,2]
[327248108,1715922649803,-1882.83285451,0.00012998,2]
[327248110,1715922649812,-2889.39399766,0.00012998,2]
[327248112,1715922649822,-155.19245772,0.00012998,2]
[327248114,1715922649830,-3015.80213045,0.00012998,2]
[327248116,1715922649840,-183.24671027,0.00012998,2]
[327248118,1715922649849,-225.94179816,0.00012998,2]
[327248120,1715922649859,-378.83157048,0.00012998,2]
[327248122,1715922649868,-778.0146266,0.00012998,2]
[327248124,1715922649877,-162.46980569,0.00012998,2]
[327248126,1715922649887,-157.051713,0.00012998,2]
[327248128,1715922649896,-157.051713,0.00012998,2]
[327248130,1715922649906,-157.051713,0.00012998,2]
[327248132,1715922649915,-157.051713,0.00012998,2]
[327248134,1715922649925,-157.051713,0.00012998,2]
[327248136,1715922649935,-157.051713,0.00012998,2]
[327248138,1715922649944,-157.051713,0.00012998,2]
[327248140,1715922649953,-157.051713,0.00012998,2]
[327248142,1715922649963,-157.051713,0.00012998,2]
[327248144,1715922649972,-157.051713,0.00012998,2]
[327248146,1715922649982,-157.051713,0.00012998,2]
[327248148,1715922649991,-157.051713,0.00012998,2]
[327248150,1715922650000,-173.051713,0.00012998,2]
[327248152,1715922650011,-173.051713,0.00012998,2]
[327248154,1715922650020,-173.051713,0.00012998,2]
[327248156,1715922650030,-173.051713,0.00012998,2]
[327248158,1715922650039,-173.051713,0.00012998,2]
[327248160,1715922650048,-173.051713,0.00012998,2]
[327248162,1715922650058,-173.051713,0.00012998,2]
[327248164,1715922650067,-173.051713,0.00012998,2]
[327248166,1715922650077,-1203.45165127,0.00012998,2]
[327248168,1715922650086,-314.051713,0.00012998,2]
[327248170,1715922650096,-314.051713,0.00012998,2]
[327248172,1715922650105,-314.051713,0.00012998,2]
[327248174,1715922650115,-314.051713,0.00012998,2]
[327248177,1715922650124,-314.051713,0.00012998,2]
[327248179,1715922650134,-314.051713,0.00012998,2]
[327248181,1715922650144,-314.051713,0.00012998,2]
[327248183,1715922650154,-314.051713,0.00012998,2]
[327248185,1715922650163,-314.051713,0.00012998,2]
[327248187,1715922650178,-314.051713,0.00012998,2]
[327248189,1715922650187,-314.051713,0.00012998,2]
[327248190,1715922650196,-314.051713,0.00012998,2]
[327248193,1715922650207,-314.051713,0.00012998,2]
[327248195,1715922650216,-314.051713,0.00012998,2]
[327248197,1715922650225,-314.051713,0.00012998,2]
[327248199,1715922650234,-314.051713,0.00012998,2]
[327248201,1715922650244,-314.051713,0.00012998,2]
[327248203,1715922650253,-314.051713,0.00012998,2]
[327248205,1715922650262,-500.0,0.00012998,2]
[327248207,1715922650272,-314.051713,0.00012998,2]
[327248209,1715922650281,-314.051713,0.00012998,2]
[327248211,1715922650290,-314.051713,0.00012998,2]
[327248213,1715922650299,-173.051713,0.00012998,2]
[327248215,1715922650308,-173.051713,0.00012998,2]
[327248217,1715922650317,-151.0,0.00012998,2]
[327248219,1715922650326,-173.051713,0.00012998,2]
[327248221,1715922650335,-151.0,0.00012998,2]
[327248223,1715922650344,-173.051713,0.00012998,2]
[327248225,1715922650353,-333.3832408,0.00012998,2]
[327248227,1715922650362,-167.051713,0.00012998,2]
[327248229,1715922650371,-474.98800744,0.00012998,2]
[327248231,1715922650380,-448.56382066,0.00012998,2]
[327248233,1715922650389,-500.0,0.00012998,2]
[327248235,1715922650397,-151.0,0.00012998,2]
[327248236,1715922650406,-500.0,0.00012998,2]
[327248238,1715922650416,-495.77229998,0.00012998,2]
[327248239,1715922650426,-504.35328042,0.00012998,2]
[327248240,1715922650435,-309.3558498,0.00012998,2]
[327248241,1715922650444,-500.0,0.00012998,2]
[327248242,1715922650453,-260.78056648,0.00012998,2]
[327248243,1715922650462,-252.58,0.00012998,2]
[327248244,1715922650471,-398.64604727,0.00012998,2]
[327248245,1715922650480,-500.0,0.00012998,2]
[327248246,1715922650489,-517.75879557,0.00012998,2]
[327248247,1715922650498,-519.4690719,0.00012998,2]
[327248248,1715922650507,-151.0,0.00012998,2]
[327248249,1715922650516,-153.553799,0.00012998,2]
[327248250,1715922650525,-218.62646107,0.00012998,2]
[327248251,1715922650533,-465.71745892,0.00012998,2]
[327248252,1715922650542,-151.0,0.00012998,2]
[327248254,1715922650552,-151.0,0.00012998,2]
[327248256,1715922650561,-500.0,0.00012998,2]
[327248258,1715922650570,-611.69804448,0.00012998,2]
[327248260,1715922650579,-368.43018318,0.00012998,2]
[327248262,1715922650589,-500.0,0.00012998,2]
[327248264,1715922650598,-500.0,0.00012998,2]
[327248266,1715922650607,-500.0,0.00012998,2]
[327248268,1715922650617,-500.0,0.00012998,2]
[327248269,1715922650626,-291.9782576,0.00012998,2]
[327248271,1715922650635,-500.0,0.00012998,2]
[327248274,1715922650645,-514.40589041,0.00012998,2]
[327248276,1715922650654,-151.0,0.00012998,2]
[327248278,1715922650663,-500.0,0.00012998,2]
[327248279,1715922650673,-500.0,0.00012998,2]
[327248281,1715922650682,-500.0,0.00012998,2]
[327248283,1715922650692,-226.043876,0.00012998,2]
[327248286,1715922650701,-151.0,0.00012998,2]
[327248288,1715922650711,-207.54439667,0.00012998,2]
[327248290,1715922650720,-500.0,0.00012998,2]
[327248292,1715922650729,-500.0,0.00012998,2]
[327248294,1715922650739,-151.0,0.00012998,2]
[327248296,1715922650748,-180.26089454,0.00012998,2]
[327248298,1715922650757,-348.9161136,0.00012998,2]
[327248300,1715922650767,-223.90980162,0.00012998,2]
[327248302,1715922650776,-500.0,0.00012998,2]
[327248304,1715922650785,-151.0,0.00012998,2]
[327248306,1715922650795,-151.0,0.00012998,2]
[327248307,1715922650804,-639.67,0.00012998,2]
[327248309,1715922650813,-361.49680555,0.00012998,2]
[327248312,1715922650823,-615.22978059,0.00012998,2]
[327248313,1715922650832,-500.0,0.00012998,2]